fUST/lending_fUST_20250515
["ID","MTS","AMOUNT","RATE_DAILY","PERIOD"]
[361117352,1747275039279,-630.7064914,0.00019819,2]
[361117353,1747275039289,-630.7064914,0.00019819,2]
[361117354,1747275039301,-630.7064914,0.00019819,2]
[361117355,1747275039310,-630.7064914,0.00019819,2]
[361117356,1747275039319,-151.0,0.00019819,2]
[361117357,1747275039328,-151.0,0.00019819,2]
[361117358,1747275039337,-59.78521423,0.00019819,2]
[361117359,1747275039349,-91.21478577,0.00019819,2]
[361117360,1747275039358,-151.0,0.00019819,2]
[361117361,1747275039367,-151.0,0.00019819,2]
[361117362,1747275039376,-151.0,0.00019819,2]
[361117363,1747275039385,-151.0,0.00019819,2]
[361117364,1747275039395,-151.0,0.00019819,2]
[361117365,1747275039404,-151.0,0.00019819,2]
[361117366,1747275039413,-151.0,0.00019819,2]
[361117367,1747275039422,-151.0,0.00019819,2]
[361117368,1747275039431,-4059.02192942,0.0001982,2]
[361117510,1747275043761,-110304.2717818,0.0001982,2]
[361117551,1747275168718,809.0,0.0002753,120]
[361117559,1747275919550,-160.689563,0.00013699,2]
[361117590,1747276231945,-175.0,0.00016999,2]
[361117592,1747276231954,-300.0,0.00016999,2]
[361117594,1747276231964,-1200.0,0.00016999,2]
[361117612,1747276232110,-300.0,0.00016999,2]
[361117614,1747276232120,-15684.26981872,0.00017,2]
[361117615,1747276232129,-2063.75169877,0.000176,2]
[361117617,1747276232138,-4977.48348561,0.000179,2]
[361117619,1747276232147,-500.0,0.00017973,2]
[361117621,1747276232157,-433.9836302,0.00017973,2]
[361117623,1747276232167,-500.0,0.00017973,2]
[361117625,1747276232176,-502.14910292,0.00017973,2]
[361117627,1747276232185,-503.63586101,0.00017973,2]
[361117630,1747276232195,-500.0,0.00017973,2]
[361117632,1747276232204,-164.58985223,0.00017999,2]
[361117634,1747276232213,-500.0,0.00017999,2]
[361117636,1747276232222,-431.32264304,0.00017999,2]
[361117638,1747276232233,-68.67735696,0.00017999,2]
[361117640,1747276232243,-603.36612999,0.00017999,2]
[361117642,1747276232252,-306.95221664,0.00017999,2]
[361117644,1747276232261,-136.52199816,0.00017999,2]
[361117646,1747276232276,-23.8686943,0.00017999,2]
[361117648,1747276232285,-1371.59469945,0.00018,2]
[361117650,1747276232294,-2945.37281436,0.00018,3]
[361117753,1747276237829,-342.30029387,0.00018,3]
[361117754,1747276237844,-298.21169801,0.00018,2]
[361117899,1747276273935,160.689563,0.00013699,2]
[361117900,1747276333131,26039.26238671,0.00027215,120]
[361117901,1747276333154,102865.0,0.00027215,120]
[361117902,1747276333176,88278.34068646,0.00027215,120]
[361117903,1747276333198,200.0,0.00027215,120]
[361117963,1747277437903,-546.301567,0.00017123,2]
[361117964,1747277437915,-300.0,0.00017972,2]
[361117965,1747277437928,-999.0,0.00017972,2]
[361117966,1747277437941,-300.0,0.00017972,2]
[361117967,1747277437954,-20933.92737513,0.00017973,2]
[361117968,1747277437966,-502.77315159,0.00017973,2]
[361117969,1747277437980,-410.26983227,0.00017973,2]
[361117970,1747277437993,-502.73693887,0.00017973,2]
[361117971,1747277438009,-500.0,0.00017973,2]
[361117972,1747277438020,-500.0,0.00017973,2]
[361117973,1747277438032,-500.0,0.00017973,2]
[361117974,1747277438044,-502.8258535,0.00017973,2]
[361117975,1747277438056,-500.0,0.00017973,2]
[361117976,1747277438070,-503.10517284,0.00017973,2]
[361117977,1747277438083,-502.86975444,0.00017973,2]
[361117978,1747277438098,-500.0,0.00017973,2]
[361117979,1747277438109,-500.0,0.00017973,2]
[361117980,1747277438121,-501.77762235,0.00017973,2]
[361117981,1747277438132,-500.0,0.00017973,2]
[361117982,1747277438144,-162.045,0.00017973,2]
[361117983,1747277438156,-500.0,0.00017996,2]
[361117984,1747277438167,-500.0,0.00017996,2]
[361117985,1747277438179,-236.6790923,0.00017996,2]
[361117986,1747277438191,-500.0,0.00017996,2]
[361117987,1747277438202,-500.0,0.00017996,2]
[361117988,1747277438214,-500.0,0.00017996,2]
[361117989,1747277438225,-500.0,0.00017996,2]
[361117990,1747277438236,-500.0,0.00017996,2]
[361117991,1747277438248,-295.82539086,0.00017996,2]
[361117992,1747277438259,-500.0,0.00017996,2]
[361117993,1747277438271,-339.95566534,0.00017996,2]
[361117994,1747277438282,-500.0,0.00017996,2]
[361117995,1747277438292,-500.0,0.00017996,2]
[361117996,1747277438304,-66939.90758351,0.00018,2]
[361118410,1747277446088,-581.16818167,0.00018,2]
[361118749,1747277449318,160.689563,0.00013699,2]
[361118965,1747278632179,-200.35865009,0.000178,2]
[361118966,1747278632189,-2000.3065341,0.000179,2]
[361118968,1747278632198,-273.150783,0.00017985,2]
[361118970,1747278632208,-300.0,0.00017999,2]
[361118972,1747278632217,-300.0,0.00017999,2]
[361118974,1747278632226,-204.43951837,0.00017999,2]
[361118976,1747278632235,-421.75837676,0.00017999,2]
[361118978,1747278632244,-19668.92925907,0.00018,2]
[361118992,1747278638223,-3494.31324871,0.00018,2]
[361118993,1747278638235,-2652.42219728,0.00018,2]
[361119786,1747278816367,170.284874,0.00013699,2]
[361119794,1747279724046,1807.70021946,0.0002,120]
[361119822,1747279832419,-273.1507843,0.00016982,2]
[361119823,1747279832429,-1825.5194123,0.00017118,2]
[361119824,1747279832439,-300.0,0.00017699,2]
[361119825,1747279832449,-300.0,0.00017699,2]
[361119826,1747279832459,-5565.29799604,0.000177,2]
[361119827,1747279832471,-1042.75767919,0.000177,2]
[361119828,1747279832481,-1553.50040362,0.000177,2]
[361119829,1747279832491,-1954.79213048,0.00017899,2]
[361119830,1747279832503,-178.69520321,0.000179,2]
[361119831,1747279832513,-4811.56736951,0.000179,2]
[361119832,1747279832522,-419.41810654,0.00017998,2]
[361119833,1747279832532,-188.18706791,0.00017998,2]
[361119858,1747279840607,-316.10304866,0.00017998,2]
[361119860,1747279840617,-60.03614974,0.00017998,2]
[361119862,1747279840629,-121.01465512,0.00017998,2]
[361119865,1747279840638,-685.79734972,0.00017999,2]
[361119867,1747279840648,-387.56785903,0.00017999,3]
[361119973,1747279843534,-1256.26869509,0.00017999,3]
[361119975,1747279843543,-151.0,0.00017999,2]
[361119977,1747279843553,-151.0,0.00017999,2]
[361119979,1747279843562,-329.998488,0.00017999,2]
[361119981,1747279843571,-329.998488,0.00017999,2]
[361119983,1747279843580,-151.837656,0.00017999,2]
[361119985,1747279843590,-151.0,0.00017999,2]
[361119987,1747279843599,-62.0273692,0.00017999,2]
[361120077,1747280137846,-595.35191417,0.00027671,120]
[361120078,1747280137914,-200.0,0.00027745,120]
[361120079,1747280137986,-200.0,0.00027896,120]
[361120080,1747280138023,-3294.2023853,0.00028,120]
[361120082,1747280400372,170.284874,0.00013699,2]
[361120084,1747280547327,196.0,0.00015,2]
[361120158,1747281435837,170.284874,0.00013699,2]
[361120159,1747281861583,200.0,0.00027745,120]
[361120187,1747282231755,-342.89867486,0.00016396,2]
[361120189,1747282231765,-821.91827706,0.00016397,3]
[361120191,1747282231774,-5000.0,0.00016397,2]
[361120193,1747282231784,-300.0,0.00016898,2]
[361120194,1747282231793,-300.0,0.00016899,2]
[361120195,1747282231805,-175.0,0.00016899,2]
[361120196,1747282231815,-1200.0,0.00016899,2]
[361120197,1747282231825,-300.0,0.00016899,2]
[361120198,1747282231835,-4817.09790652,0.000169,2]
[361120199,1747282231844,-4817.09790645,0.00017314,2]
[361120200,1747282231854,-196.0,0.000176,2]
[361120201,1747282231864,-153.0,0.00017726,2]
[361120203,1747282231873,-153.0,0.00017726,2]
[361120205,1747282231882,-4817.09790645,0.00017728,2]
[361120207,1747282231892,-151.0,0.00017728,2]
[361120210,1747282231911,-151.0,0.00017728,2]
[361120212,1747282231922,-152.959715,0.00017728,2]
[361120214,1747282231932,-151.0,0.00017728,2]
[361120216,1747282231943,-151.0,0.00017728,2]
[361120218,1747282231953,-151.0,0.00017728,2]
[361120220,1747282231964,-151.0,0.00017728,2]
[361120222,1747282231974,-222.286516,0.00017728,2]
[361120224,1747282231984,-160.321574,0.00017728,2]
[361120226,1747282231995,-160.321574,0.00017728,2]
[361120228,1747282232008,-222.286516,0.00017728,2]
[361120230,1747282232020,-151.0,0.00017728,2]
[361120232,1747282232030,-151.231807,0.00017728,2]
[361120234,1747282232041,-151.231807,0.00017728,2]
[361120236,1747282232051,-151.0,0.00017728,2]
[361120239,1747282232064,-151.0,0.00017728,2]
[361120241,1747282232074,-151.0,0.00017728,2]
[361120243,1747282232084,-151.0,0.00017728,2]
[361120245,1747282232094,-230.435755,0.00017728,2]
[361120247,1747282232103,-230.435755,0.00017728,2]
[361120249,1747282232113,-151.0,0.00017728,2]
[361120251,1747282232123,-151.0,0.00017728,2]
[361120253,1747282232133,-151.0,0.00017728,2]
[361120255,1747282232144,-151.0,0.00017728,2]
[361120257,1747282232154,-151.0,0.00017728,2]
[361120259,1747282232163,-1710.44311417,0.00017795,2]
[361120261,1747282232173,-1000.0,0.000178,2]
[361120263,1747282232183,-151.0,0.000178,2]
[361120265,1747282232193,-151.0,0.000178,2]
[361120267,1747282232204,-151.0,0.000178,2]
[361120269,1747282232214,-153.6631485,0.0001789,2]
[361120270,1747282232224,-500.0,0.00017894,2]
[361120271,1747282232234,-431.32264304,0.00017894,2]
[361120272,1747282232244,-5275.0,0.00017895,3]
[361120273,1747282232255,-151.0,0.00017895,2]
[361120274,1747282232265,-151.0,0.00017895,2]
[361120275,1747282232275,-151.0,0.00017895,2]
[361120276,1747282232284,-151.0,0.00017895,2]
[361120277,1747282232294,-151.0,0.00017895,2]
[361120278,1747282232304,-151.0,0.00017895,2]
[361120279,1747282232315,-222.286516,0.00017895,2]
[361120280,1747282232325,-160.321574,0.00017895,2]
[361120281,1747282232335,-160.321574,0.00017895,2]
[361120282,1747282232344,-222.286516,0.00017895,2]
[361120283,1747282232355,-151.0,0.00017895,2]
[361120284,1747282232364,-151.231807,0.00017895,2]
[361120285,1747282232374,-151.231807,0.00017895,2]
[361120286,1747282232384,-151.0,0.00017895,2]
[361120287,1747282232394,-151.0,0.00017895,2]
[361120288,1747282232404,-151.0,0.00017895,2]
[361120289,1747282232414,-151.0,0.00017895,2]
[361120290,1747282232423,-151.0,0.00017895,2]
[361120291,1747282232433,-151.0,0.00017895,2]
[361120292,1747282232443,-151.0,0.00017895,2]
[361120293,1747282232452,-230.435755,0.00017895,2]
[361120294,1747282232462,-230.435755,0.00017895,2]
[361120295,1747282232472,-151.0,0.00017895,2]
[361120296,1747282232481,-151.0,0.00017895,2]
[361120297,1747282232491,-151.0,0.00017895,2]
[361120298,1747282232501,-151.0,0.00017895,2]
[361120299,1747282232512,-151.0,0.00017895,2]
[361120300,1747282232522,-196.0,0.000179,2]
[361120301,1747282232532,-153.0,0.000179,2]
[361120302,1747282232541,-347.725376,0.000179,2]
[361120303,1747282232550,-151.0,0.000179,2]
[361120304,1747282232559,-151.0,0.000179,2]
[361120305,1747282232568,-151.0,0.000179,2]
[361120306,1747282232577,-151.0,0.000179,2]
[361120307,1747282232587,-153.0,0.000179,2]
[361120308,1747282232596,-151.0,0.000179,2]
[361120309,1747282232605,-151.0,0.000179,2]
[361120310,1747282232614,-157.307976,0.000179,2]
[361120311,1747282232623,-152.314896,0.000179,2]
[361120312,1747282232633,-151.0,0.000179,2]
[361120313,1747282232642,-151.0,0.000179,2]
[361120314,1747282232651,-151.0,0.000179,2]
[361120315,1747282232661,-153.0,0.000179,2]
[361120316,1747282232670,-501.15338971,0.00017973,2]
[361120317,1747282232679,-561.69421384,0.00017973,2]
[361120318,1747282232689,-500.0,0.00017973,2]
[361120319,1747282232698,-503.88981862,0.00017973,2]
[361120320,1747282232708,-500.0,0.00017973,2]
[361120321,1747282232721,-500.0,0.00017973,2]
[361120322,1747282232731,-500.0,0.00017973,2]
[361120323,1747282232740,-392.41679992,0.00017973,2]
[361120324,1747282232749,-502.14910292,0.00017973,2]
[361120325,1747282232761,-500.0,0.00017973,2]
[361120326,1747282232770,-500.0,0.00017973,2]
[361120327,1747282232780,-500.0,0.00017973,2]
[361120328,1747282232790,-433.9836302,0.00017973,2]
[361120329,1747282232799,-503.63586101,0.00017973,2]
[361120330,1747282232808,-151.0,0.00017973,2]
[361120331,1747282232818,-151.0,0.00017973,2]
[361120332,1747282232827,-151.0,0.00017973,2]
[361120333,1747282232836,-151.0,0.00017973,2]
[361120334,1747282232846,-151.0,0.00017973,2]
[361120335,1747282232855,-178.469461,0.00017973,2]
[361120336,1747282232864,-178.469461,0.00017973,2]
[361120337,1747282232874,-452.687488,0.00017973,2]
[361120338,1747282232883,-452.687488,0.00017973,2]
[361120339,1747282232893,-172.015517,0.00017973,2]
[361120340,1747282232903,-151.0,0.00017973,2]
[361120341,1747282232912,-151.0,0.00017973,2]
[361120342,1747282232922,-151.0,0.00017973,2]
[361120343,1747282232931,-151.0,0.00017973,2]
[361120344,1747282232941,-151.0,0.00017973,2]
[361120345,1747282232950,-97.8391716,0.00017973,2]
[361120388,1747282692768,170.284874,0.00013699,2]
[361120396,1747283361595,344.34,0.00015,2]
[361120433,1747283431875,-5000.0,0.00016729,2]
[361120435,1747283431884,-300.0,0.00016898,2]
[361120437,1747283431893,-17261.24643532,0.00016899,2]
[361120504,1747283442970,-5000.0,0.0001673,2]
[361120505,1747283442980,-7423.1611804,0.00016899,2]
[361120506,1747283442989,-300.0,0.00016999,2]
[361120507,1747283442998,-204.43951837,0.00016999,2]
[361120508,1747283443007,-421.75837676,0.00016999,2]
[361120509,1747283443016,-15684.26981872,0.00017,2]
[361120511,1747283443025,-2063.75169877,0.000176,2]
[361120513,1747283443035,-151.0,0.00017728,2]
[361120515,1747283443045,-151.0,0.000178,2]
[361120516,1747283443054,-241.366494,0.000178,2]
[361120517,1747283443063,-151.0,0.00017895,2]
[361120518,1747283443073,-298.31920465,0.00017899,2]
[361120519,1747283443082,-580.90081872,0.00017899,2]
[361120520,1747283443091,-580.90081872,0.00017899,2]
[361120521,1747283443100,-314.58985223,0.00017899,2]
[361120522,1747283443110,-580.90081872,0.00017899,2]
[361120523,1747283443119,-580.90081872,0.00017899,2]
[361120524,1747283443128,-580.90081872,0.00017899,2]
[361120525,1747283443137,-580.90081872,0.00017899,2]
[361120526,1747283443146,-580.90081872,0.00017899,2]
[361120527,1747283443157,-580.90081872,0.00017899,2]
[361120528,1747283443168,-580.90081872,0.00017899,2]
[361120529,1747283443177,-580.90081872,0.00017899,2]
[361120530,1747283443188,-580.90081872,0.00017899,2]
[361120531,1747283443197,-580.90081872,0.00017899,2]
[361120532,1747283443207,-580.90081872,0.00017899,2]
[361120533,1747283443217,-580.90081872,0.00017899,2]
[361120534,1747283443226,-580.90081872,0.00017899,2]
[361120535,1747283443247,-580.90081872,0.00017899,2]
[361120536,1747283443257,-580.90081872,0.00017899,2]
[361120537,1747283443269,-580.90081872,0.00017899,2]
[361120538,1747283443279,-171.44933743,0.000179,2]
[361120539,1747283443289,-410.95913853,0.000179,3]
[361120540,1747283443299,-354.672674,0.000179,2]
[361120541,1747283443310,-155.733956,0.000179,2]
[361120542,1747283443320,-151.0,0.000179,2]
[361120543,1747283443330,-153.364387,0.000179,2]
[361120544,1747283443340,-151.0,0.000179,2]
[361120545,1747283443350,-173.497939,0.000179,2]
[361120546,1747283443360,-151.0,0.000179,2]
[361120547,1747283443370,-151.0,0.000179,2]
[361120548,1747283443380,-151.0,0.000179,2]
[361120549,1747283443390,-179.27568,0.000179,2]
[361120550,1747283443400,-179.27568,0.000179,2]
[361120551,1747283443411,-160.622515,0.000179,2]
[361120552,1747283443422,-160.622515,0.000179,2]
[361120553,1747283443432,-151.0,0.000179,2]
[361120554,1747283443442,-151.203421,0.000179,2]
[361120555,1747283443451,-160.622515,0.000179,2]
[361120556,1747283443461,-160.622515,0.000179,2]
[361120557,1747283443471,-313.516969,0.000179,2]
[361120558,1747283443481,-313.516969,0.000179,2]
[361120559,1747283443491,-313.516969,0.000179,2]
[361120560,1747283443502,-313.516969,0.000179,2]
[361120561,1747283443512,-181.520838,0.000179,2]
[361120562,1747283443528,-151.0,0.000179,2]
[361120563,1747283443539,-151.362549,0.000179,2]
[361120564,1747283443548,-151.0,0.000179,2]
[361120565,1747283443558,-151.0,0.000179,2]
[361120566,1747283443569,-151.0,0.000179,2]
[361120567,1747283443579,-151.0,0.000179,2]
[361120568,1747283443589,-151.0,0.000179,2]
[361120569,1747283443600,-151.0,0.000179,2]
[361120570,1747283443610,-151.0,0.000179,2]
[361120571,1747283443621,-151.0,0.000179,2]
[361120572,1747283443632,-151.0,0.000179,2]
[361120573,1747283443642,-151.0,0.000179,2]
[361120574,1747283443652,-151.0,0.000179,2]
[361120575,1747283443661,-151.0,0.000179,2]
[361120576,1747283443671,-151.0,0.000179,2]
[361120577,1747283443681,-151.0,0.000179,2]
[361120578,1747283443690,-151.0,0.000179,2]
[361120579,1747283443700,-151.0,0.000179,2]
[361120580,1747283443710,-190.857408,0.000179,2]
[361120581,1747283443719,-151.0,0.000179,2]
[361120582,1747283443729,-151.0,0.000179,2]
[361120583,1747283443739,-152.130319,0.000179,2]
[361120584,1747283443749,-151.9148,0.000179,2]
[361120585,1747283443759,-151.0,0.000179,2]
[361120586,1747283443770,-153.0882,0.000179,2]
[361120587,1747283443781,-161.709631,0.000179,2]
[361120588,1747283443791,-161.709631,0.000179,2]
[361120589,1747283443800,-161.709631,0.000179,2]
[361120590,1747283443809,-231.061836,0.000179,2]
[361120591,1747283443819,-231.061836,0.000179,2]
[361120592,1747283443828,-231.061836,0.000179,2]
[361120593,1747283443837,-161.709631,0.000179,2]
[361120594,1747283443847,-161.709631,0.000179,2]
[361120595,1747283443857,-151.0,0.000179,2]
[361120596,1747283443870,-161.709631,0.000179,2]
[361120597,1747283443879,-151.0,0.000179,2]
[361120598,1747283443889,-151.0,0.000179,2]
[361120599,1747283443898,-231.061836,0.000179,2]
[361120600,1747283443908,-231.061836,0.000179,2]
[361120601,1747283443918,-296.998639,0.000179,2]
[361120602,1747283443928,-231.061836,0.000179,2]
[361120603,1747283443937,-296.998639,0.000179,2]
[361120604,1747283443947,-296.998639,0.000179,2]
[361120605,1747283443957,-296.998639,0.000179,2]
[361120606,1747283443967,-296.998639,0.000179,2]
[361120607,1747283443977,-296.998639,0.000179,2]
[361120608,1747283443986,-151.0,0.000179,2]
[361120609,1747283443996,-151.0,0.000179,2]
[361120610,1747283444007,-151.0,0.000179,2]
[361120611,1747283444018,-151.0,0.000179,2]
[361120612,1747283444028,-151.0,0.000179,2]
[361120613,1747283444038,-151.0,0.000179,2]
[361120614,1747283444049,-151.0,0.000179,2]
[361120615,1747283444059,-151.0,0.000179,2]
[361120616,1747283444070,-151.0,0.000179,2]
[361120617,1747283444080,-151.0,0.000179,2]
[361120618,1747283444089,-151.0,0.000179,2]
[361120619,1747283444101,-151.0,0.000179,2]
[361120620,1747283444112,-164.117752,0.000179,2]
[361120621,1747283444122,-151.0,0.000179,2]
[361120622,1747283444132,-151.0,0.000179,2]
[361120623,1747283444142,-151.0,0.000179,2]
[361120624,1747283444151,-151.0,0.000179,2]
[361120625,1747283444330,-172.803712,0.000179,2]
[361120626,1747283444341,-151.784783,0.000179,2]
[361120627,1747283444351,-151.0,0.000179,2]
[361120628,1747283444361,-151.997538,0.000179,2]
[361120629,1747283444371,-177.829213,0.000179,2]
[361120630,1747283444380,-177.829213,0.000179,2]
[361120631,1747283444390,-177.829213,0.000179,2]
[361120632,1747283444399,-177.829213,0.000179,2]
[361120633,1747283444409,-177.829213,0.000179,2]
[361120634,1747283444418,-177.829213,0.000179,2]
[361120635,1747283444427,-177.829213,0.000179,2]
[361120636,1747283444436,-151.0,0.000179,2]
[361120637,1747283444446,-177.829213,0.000179,2]
[361120638,1747283444456,-151.0,0.000179,2]
[361120639,1747283444466,-151.0,0.000179,2]
[361120640,1747283444476,-257.010857,0.000179,2]
[361120641,1747283444485,-154.001387,0.000179,2]
[361120642,1747283444495,-396.840301,0.000179,2]
[361120643,1747283444504,-396.840301,0.000179,2]
[361120644,1747283444514,-396.840301,0.000179,2]
[361120645,1747283444528,-396.840301,0.000179,2]
[361120646,1747283444539,-396.840301,0.000179,2]
[361120647,1747283444548,-396.840301,0.000179,2]
[361120648,1747283444558,-396.840301,0.000179,2]
[361120649,1747283444567,-396.840301,0.000179,2]
[361120650,1747283444577,-151.0,0.000179,2]
[361120651,1747283444587,-151.0,0.000179,2]
[361120652,1747283444597,-151.0,0.000179,2]
[361120653,1747283444607,-151.0,0.000179,2]
[361120654,1747283444616,-151.0,0.000179,2]
[361120655,1747283444626,-151.0,0.000179,2]
[361120656,1747283444635,-151.0,0.000179,2]
[361120657,1747283444645,-151.0,0.000179,2]
[361120658,1747283444655,-151.0,0.000179,2]
[361120659,1747283444664,-151.0,0.000179,2]
[361120660,1747283444674,-151.0,0.000179,2]
[361120661,1747283444683,-151.0,0.000179,2]
[361120662,1747283444693,-151.0,0.000179,2]
[361120663,1747283444702,-151.0,0.000179,2]
[361120664,1747283444711,-151.0,0.000179,2]
[361120665,1747283444721,-253.03039,0.000179,2]
[361120666,1747283444730,-151.0,0.000179,2]
[361120667,1747283444739,-151.0,0.000179,2]
[361120668,1747283444750,-250.12589,0.000179,2]
[361120669,1747283444759,-151.0,0.000179,2]
[361120670,1747283444769,-151.0,0.000179,2]
[361120671,1747283444778,-151.0,0.000179,2]
[361120672,1747283444788,-151.0,0.000179,2]
[361120673,1747283444798,-151.0,0.000179,2]
[361120674,1747283444808,-151.0,0.000179,2]
[361120675,1747283444818,-151.0,0.000179,2]
[361120676,1747283444827,-151.0,0.000179,2]
[361120677,1747283444838,-332.869412,0.000179,2]
[361120678,1747283444847,-151.0,0.000179,2]
[361120679,1747283444857,-332.869412,0.000179,2]
[361120680,1747283444866,-332.869412,0.000179,2]
[361120681,1747283444876,-151.0,0.000179,2]
[361120682,1747283444885,-151.0,0.000179,2]
[361120683,1747283444895,-151.0,0.000179,2]
[361120684,1747283444904,-152.533378,0.000179,2]
[361120685,1747283444913,-332.869412,0.000179,2]
[361120686,1747283444923,-332.869412,0.000179,2]
[361120687,1747283444933,-332.869412,0.000179,2]
[361120688,1747283444943,-153.0,0.000179,2]
[361120689,1747283444952,-151.0,0.000179,2]
[361120690,1747283444962,-151.0,0.000179,2]
[361120691,1747283444972,-151.0,0.000179,2]
[361120692,1747283444981,-151.0,0.000179,2]
[361120693,1747283444991,-151.0,0.000179,2]
[361120694,1747283445001,-151.0,0.000179,2]
[361120695,1747283445011,-151.0,0.000179,2]
[361120696,1747283445020,-151.0,0.000179,2]
[361120697,1747283445031,-214.419131,0.000179,2]
[361120698,1747283445041,-151.0,0.000179,2]
[361120699,1747283445051,-151.0,0.000179,2]
[361120700,1747283445060,-68.51431099,0.000179,2]
[361120716,1747283730118,170.284874,0.00013699,2]
[361120839,1747284638001,-5000.0,0.00015383,2]
[361120841,1747284638010,-300.0,0.00015767,2]
[361120843,1747284638020,-300.0,0.00015768,2]
[361120845,1747284638029,-300.0,0.00015768,2]
[361120847,1747284638039,-181.0,0.00015768,2]
[361120849,1747284638048,-1200.0,0.00015768,2]
[361120851,1747284638058,-500.0,0.0001577,2]
[361120853,1747284638069,-500.0,0.0001577,2]
[361120854,1747284638079,-501.21047129,0.0001577,2]
[361120855,1747284638090,-459.47150197,0.0001577,2]
[361120856,1747284638099,-431.34037674,0.0001577,2]
[361120857,1747284638109,-500.0,0.0001577,2]
[361120858,1747284638118,-500.0,0.0001577,2]
[361120859,1747284638127,-490.54767617,0.0001577,2]
[361120860,1747284638137,-500.0,0.0001577,2]
[361120861,1747284638146,-172.74330662,0.0001577,2]
[361120862,1747284638155,-18121.50553898,0.00015771,2]
[361120863,1747284638167,-1020.0,0.00015771,2]
[361120864,1747284638201,-12140.33321472,0.00015771,2]
[361120865,1747284638210,-569.0305563,0.00015795,2]
[361120866,1747284638219,-273.150783,0.00016598,2]
[361120867,1747284638229,-1000.0,0.0001663,2]
[361120868,1747284638238,-16510.230468,0.0001673,2]
[361120869,1747284638248,-200.35865009,0.00016799,2]
[361120870,1747284638257,-643.47515759,0.00016892,2]
[361120871,1747284638266,-500.0,0.00016892,2]
[361120872,1747284638275,-500.0,0.00016892,2]
[361120873,1747284638284,-452.57113392,0.00016892,2]
[361120874,1747284638294,-5301.5123886,0.00016893,2]
[361120877,1747284638306,-427.38381712,0.00016893,2]
[361120896,1747284640363,-5572.98454052,0.00016893,2]
[361120908,1747284644735,-4556.912373,0.00016893,2]
[361120909,1747284644751,-2062.6,0.00016893,2]
[361120910,1747284644765,-6978.60688076,0.00016893,2]
[361120911,1747284644773,-151.0,0.00016893,2]
[361120912,1747284644783,-151.0,0.00016893,2]
[361120913,1747284644793,-151.0,0.00016893,2]
[361120914,1747284644802,-151.60723,0.00016893,2]
[361120915,1747284644812,-151.0,0.00016893,2]
[361120916,1747284644822,-151.0,0.00016893,2]
[361120917,1747284644831,-151.0,0.00016893,2]
[361120918,1747284644843,-238.153464,0.00016893,2]
[361120919,1747284644852,-151.0,0.00016893,2]
[361120920,1747284644862,-407.418739,0.00016893,2]
[361120921,1747284644871,-407.418739,0.00016893,2]
[361120922,1747284644880,-151.0,0.00016893,2]
[361120923,1747284644890,-151.0,0.00016893,2]
[361120924,1747284644900,-207.899047,0.00016893,2]